fUSD/lending_fUSD_20251118
["ID","MTS","AMOUNT","RATE_DAILY","PERIOD"]
[394299740,1763431036748,-435.68171857,0.00017673,2]
[394299741,1763431036759,-67.48967222,0.00017673,2]
[394299742,1763431036769,-368.19204635,0.00017836,2]
[394299743,1763431036783,-300.0,0.00017836,2]
[394299744,1763431036795,-435.68171857,0.00017836,2]
[394299745,1763431036806,-179.80591824,0.00017836,2]
[394299746,1763431036817,-236.08287074,0.00017836,2]
[394299747,1763431036828,-294.73959081,0.00017836,2]
[394299748,1763431036839,-435.68171857,0.00017836,2]
[394299749,1763431036855,-435.68171857,0.00017836,2]
[394299750,1763431036865,-435.68171857,0.00017836,2]
[394299751,1763431036877,-194.91081096,0.00017836,2]
[394299752,1763431036887,-435.68171857,0.00017836,2]
[394299753,1763431036899,-435.68171857,0.00017836,2]
[394299754,1763431036910,-435.68171857,0.00017836,2]
[394299755,1763431036926,-195.14285083,0.00017836,2]
[394299756,1763431036937,-76.16456362,0.00017836,2]
[394299757,1763431036947,-359.51715495,0.00017836,2]
[394299758,1763431036958,-435.68171857,0.00017836,2]
[394299759,1763431036969,-435.68171857,0.00017836,2]
[394299760,1763431036980,-415.94799635,0.00017836,2]
[394299761,1763431036991,-435.68171857,0.00017836,2]
[394299762,1763431037006,-435.68171857,0.00017836,2]
[394299763,1763431037017,-435.68171857,0.00017836,2]
[394299764,1763431037028,-255.54444548,0.00017836,2]
[394299765,1763431037039,-435.68171857,0.00017836,2]
[394299766,1763431037230,-435.68171857,0.00017836,2]
[394299767,1763431037269,-435.68171857,0.00017836,2]
[394299768,1763431037283,-435.68171857,0.00017836,2]
[394299769,1763431037294,-435.68171857,0.00017836,2]
[394299770,1763431037309,-435.68171857,0.00017836,2]
[394299771,1763431037324,-435.68171857,0.00017836,2]
[394299772,1763431037335,-435.68171857,0.00017836,2]
[394299773,1763431037348,-435.68171857,0.00017836,2]
[394299774,1763431037359,-435.68171857,0.00017836,2]
[394299775,1763431037377,-435.68171857,0.00017836,2]
[394299776,1763431037391,-435.68171857,0.00017836,2]
[394299777,1763431037409,-435.68171857,0.00017836,2]
[394299778,1763431037422,-435.68171857,0.00017836,2]
[394299779,1763431037432,-435.68171857,0.00017836,2]
[394299780,1763431037444,-435.68171857,0.00017836,2]
[394299781,1763431037454,-435.68171857,0.00017836,2]
[394299782,1763431037466,-435.68171857,0.00017836,2]
[394299783,1763431037482,-435.68171857,0.00017836,2]
[394299784,1763431037498,-435.68171857,0.00017836,2]
[394299785,1763431037509,-435.68171857,0.00017836,2]
[394299786,1763431037520,-435.68171857,0.00017836,2]
[394299787,1763431037532,-435.68171857,0.00017836,2]
[394299788,1763431037542,-435.68171857,0.00017836,2]
[394299789,1763431037556,-435.68171857,0.00017836,2]
[394299790,1763431037567,-435.68171857,0.00017836,2]
[394299791,1763431037577,-435.68171857,0.00017836,2]
[394299792,1763431037595,-435.68171857,0.00017836,2]
[394299793,1763431037605,-435.68171857,0.00017836,2]
[394299794,1763431037620,-435.68171857,0.00017836,2]
[394299795,1763431037630,-435.68171857,0.00017836,2]
[394299796,1763431037640,-435.68171857,0.00017836,2]
[394299797,1763431037651,-435.68171857,0.00017836,2]
[394299798,1763431037662,-435.68171857,0.00017836,2]
[394299799,1763431037678,-435.68171857,0.00017836,2]
[394299800,1763431037707,-435.68171857,0.00017836,2]
[394299801,1763431037718,-435.68171857,0.00017836,2]
[394299802,1763431037728,-435.68171857,0.00017836,2]
[394299803,1763431037739,-435.68171857,0.00017836,2]
[394299804,1763431037750,-435.68171857,0.00017836,2]
[394299805,1763431037762,-435.68171857,0.00017836,2]
[394299806,1763431037772,-435.68171857,0.00017836,2]
[394299807,1763431037784,-435.68171857,0.00017836,2]
[394299808,1763431037798,-435.68171857,0.00017836,2]
[394299809,1763431037813,-435.68171857,0.00017836,2]
[394299810,1763431037823,-435.68171857,0.00017836,2]
[394299811,1763431037844,-435.68171857,0.00017836,2]
[394299812,1763431037858,-435.68171857,0.00017836,2]
[394299813,1763431037912,-435.68171857,0.00017836,2]
[394299814,1763431037937,-146.16800844,0.00017836,2]
[394299815,1763431037946,-289.51371013,0.00017899,2]
[394299816,1763431037957,-334.8355228,0.00017899,2]
[394299817,1763431037966,-100.84619577,0.00017973,2]
[394299818,1763431038008,-399.15380423,0.00017973,2]
[394299819,1763431038018,-36.52791434,0.00017973,2]
[394299820,1763431038029,-435.68171857,0.00017973,2]
[394299821,1763431038042,-31.69907432,0.00017973,2]
[394299822,1763431038051,-403.98264425,0.00017982,2]
[394299823,1763431038062,-98.5994526,0.00017982,2]
[394299824,1763431038071,-155.25,0.00017989,2]
[394299825,1763431038080,-156.73,0.00017989,2]
[394299826,1763431038089,-25.10226597,0.00017997,2]
[394299827,1763431038100,-125.89773403,0.00017997,2]
[394299828,1763431038109,-309.78398454,0.00017999,2]
[394299829,1763431038119,-435.68171857,0.00017999,2]
[394299830,1763431038135,-435.68171857,0.00017999,2]
[394299831,1763431038145,-435.68171857,0.00017999,2]
[394299832,1763431038157,-34.31985975,0.00017999,2]
[394299833,1763431038166,-178.896,0.00017999,2]
[394299834,1763431038175,-222.46585882,0.00017999,2]
[394299835,1763431038191,-277.53414118,0.00017999,2]
[394299836,1763431038200,-158.14757739,0.00017999,2]
[394299837,1763431038211,-48.46542321,0.00017999,2]
[394299838,1763431038219,-167.88110722,0.00017999,2]
[394299839,1763431038228,-219.33518814,0.00017999,2]
[394299840,1763431038239,-130.92940347,0.00017999,2]
[394299841,1763431038248,-283.95063273,0.00017999,2]
[394299842,1763431038257,-20.80168237,0.00018,2]
[394299843,1763431038272,-435.68171857,0.00018,2]
[394299844,1763431038282,-435.68171857,0.00018,2]
[394299845,1763431038293,-435.68171857,0.00018,2]
[394299846,1763431038311,-234.8062,0.00018,2]
[394299847,1763431038321,-280.3589,0.00018,2]
[394299848,1763431038336,-435.68171857,0.00018,2]
[394299849,1763431038351,-435.68171857,0.00018,2]
[394299850,1763431038363,-435.68171857,0.00018,2]
[394299851,1763431038380,-195.0,0.00018,2]
[394299852,1763431038392,-151.0,0.00018,2]
[394299853,1763431038403,-435.68171857,0.00018,2]
[394299854,1763431038419,-435.68171857,0.00018,2]
[394299855,1763431044000,250.0,0.00041679,120]
[394299856,1763431044621,250.0,0.00041679,120]
[394299857,1763431045252,250.0,0.00041679,120]
[394299858,1763431045885,250.0,0.00041679,120]
[394299859,1763431046478,250.0,0.00041679,120]
[394299860,1763431047208,250.0,0.00041679,120]
[394299861,1763431047759,250.0,0.00041679,120]
[394299862,1763431048375,250.0,0.00041679,120]
[394299863,1763431049005,250.0,0.00041679,120]
[394299864,1763431049607,250.0,0.00041679,120]
[394299865,1763431050217,250.0,0.00041679,120]
[394299866,1763431050863,250.0,0.00041679,120]
[394299867,1763431060664,-250.0,0.00017,2]
[394299868,1763431060704,-151.0,0.00017697,2]
[394299869,1763431060745,-151.0,0.00017833,2]
[394299870,1763431060786,-151.0,0.00017989,2]
[394299871,1763431060825,-151.0,0.00017989,2]
[394299872,1763431060865,-151.0,0.00017989,2]
[394299873,1763431060908,-151.0,0.00017989,2]
[394299874,1763431060950,-151.0,0.00017989,2]
[394299875,1763431060989,-151.0,0.00017989,2]
[394299876,1763431061029,-151.0,0.00017989,2]
[394299877,1763431061282,-151.0,0.00017989,2]
[394299878,1763431061323,-225.68544447,0.00017989,2]
[394299879,1763431061365,-245.32972085,0.00017997,2]
[394299880,1763431061405,-60934.78171212,0.00018,2]
[394299881,1763431061453,-33731.8245201,0.00018,2]
[394299882,1763431061466,-250.0,0.00018,2]
[394299883,1763431061504,-151.0,0.00018,2]
[394299884,1763431061515,-151.0,0.00018,2]
[394299885,1763431061526,-151.0,0.00018,2]
[394299886,1763431061537,-151.0,0.00018,2]
[394299887,1763431061549,-151.0,0.00018,2]
[394299888,1763431061561,-151.0,0.00018,2]
[394299889,1763431061577,-151.0,0.00018,2]
[394299890,1763431061588,-151.0,0.00018,2]
[394299891,1763431061621,-151.0,0.00018,2]
[394299892,1763431061632,-151.0,0.00018,2]
[394299893,1763431061647,-225.68544447,0.00018,2]
[394299894,1763431061680,-245.32972085,0.00018,2]
[394299895,1763431061692,-435.68171857,0.00018,2]
[394299896,1763431061708,-435.68171857,0.00018,2]
[394299897,1763431103784,151.0,0.00041679,31]
[394299898,1763431104115,151.0,0.00041679,100]
[394299899,1763431109234,174.178982,0.00041679,31]
[394299900,1763431109540,174.178982,0.00041679,100]
[394299901,1763431110867,174.178982,0.00041679,31]
[394299902,1763431111178,174.178982,0.00041679,100]
[394299903,1763431112437,174.178982,0.00041679,31]
[394299904,1763431112767,174.178982,0.00041679,100]
[394299905,1763431114619,174.178982,0.00041679,31]
[394299906,1763431115190,174.178975,0.00041679,100]
[394299907,1763431119390,215.333611,0.00041679,31]
[394299908,1763431119746,215.333611,0.00041679,100]
[394299909,1763431121155,215.333611,0.00041679,31]
[394299910,1763431121475,215.333611,0.00041679,100]
[394299911,1763431122834,215.333611,0.00041679,31]
[394299912,1763431123143,215.333611,0.00041679,100]
[394299913,1763431124581,215.333611,0.00041679,31]
[394299914,1763431124894,215.33361076,0.00041679,100]
[394299915,1763431147330,151.0,0.00041678,31]
[394299916,1763431147629,267.578106,0.00041678,100]
[394299917,1763431190743,283.0,0.00041678,60]
[394299918,1763431310966,500.0,0.00041678,30]
[394299920,1763431320528,150.0,0.00017308,120]
[394299922,1763431329959,612.58,0.00041678,30]
[394299923,1763431346067,475.18,0.00041678,30]
[394299925,1763431454469,500.0,0.00041672,120]
[394299926,1763431455101,500.0,0.00041672,120]
[394299927,1763431455733,500.0,0.00041672,120]
[394299928,1763431456352,500.0,0.00041672,120]
[394299929,1763431457005,500.0,0.00041672,120]
[394299930,1763431457651,500.0,0.00041672,120]
[394299931,1763431458284,500.0,0.00041672,120]
[394299932,1763431458886,500.0,0.00041672,120]
[394299933,1763431459574,500.0,0.00041672,120]
[394299934,1763431460826,500.0,0.00041672,120]
[394299943,1763431637474,1500.0,0.00016953,2]
[394299944,1763431658173,301.63881876,0.00041672,30]
[394299981,1763431831568,-999.0,0.00017048,3]
[394299982,1763431831578,-195.0,0.00017131,2]
[394299983,1763431831587,-195.0,0.000172,2]
[394299984,1763431831596,-300.0,0.00017215,2]
[394299985,1763431831608,-1200.0,0.00017215,2]
[394299986,1763431831617,-250.0,0.00017216,2]
[394299987,1763431831627,-8885.0,0.00017216,2]
[394299988,1763431831636,-150.0,0.00017308,2]
[394299989,1763431831646,-1650.909,0.00017542,2]
[394299990,1763431831655,-177.342,0.00017542,2]
[394299991,1763431831665,-500.0,0.000177,6]
[394299992,1763431831675,-877.15026967,0.00017747,2]
[394299993,1763431831686,-163.68668287,0.000178,2]
[394299994,1763431831695,-1100.0,0.000178,6]
[394299995,1763431831704,-502.08541522,0.00017873,2]
[394299996,1763431831714,-327.49413513,0.00017873,2]
[394299997,1763431831723,-151.0,0.00017889,2]
[394299998,1763431831732,-157.55973292,0.00017889,2]
[394299999,1763431831741,-527.0,0.00017898,2]
[394300000,1763431831750,-250.6160495,0.00017899,2]
[394300001,1763431831760,-500.0,0.00017899,2]
[394300002,1763431831769,-227.46288222,0.00017899,2]
[394300003,1763431831779,-157.32755515,0.00017899,2]
[394300004,1763431831789,-500.0,0.00017899,2]
[394300005,1763431831799,-500.0,0.00017899,2]
[394300006,1763431831808,-500.0,0.00017899,2]
[394300007,1763431831817,-500.0,0.00017899,2]
[394300008,1763431831827,-500.0,0.00017899,2]
[394300010,1763431831836,-500.0,0.00017899,2]
[394300012,1763431831846,-500.0,0.00017899,2]
[394300013,1763431831855,-500.0,0.00017899,2]
[394300014,1763431831864,-348.16933288,0.00017899,2]
[394300015,1763431831873,-500.0,0.00017899,2]
[394300016,1763431831882,-3306.88157969,0.00017899,2]
[394300018,1763431831891,-500.0,0.00017899,2]
[394300020,1763431831904,-500.0,0.00017899,2]
[394300022,1763431831914,-511.29381784,0.00017899,2]
[394300024,1763431831923,-424.54245332,0.00017899,2]
[394300025,1763431831932,-500.0,0.00017899,2]
[394300027,1763431831942,-500.0,0.00017899,2]
[394300028,1763431831951,-517.80494221,0.00017899,2]
[394300029,1763431831960,-500.0,0.00017899,2]
[394300030,1763431831969,-500.0,0.00017899,2]
[394300031,1763431831978,-627.71575827,0.00017899,2]
[394300032,1763431831988,-214.81,0.00017899,2]
[394300033,1763431831997,-176.04431931,0.00017899,2]
[394300034,1763431832006,-83736.14672847,0.000179,2]
[394300035,1763431832027,-455.652496,0.000179,2]
[394300038,1763431837472,-3176.10215772,0.000179,2]
[394300165,1763431839303,-12603.03431062,0.000179,2]
[394300168,1763431839317,-2473.91268944,0.000179,2]
[394300170,1763431839332,-2005.42907618,0.000179,2]
[394300202,1763431839628,-523863.67640978,0.000179,2]
[394300207,1763431839734,-708.54922992,0.000179,2]
[394300209,1763431839745,-1193.94156472,0.000179,2]
[394300211,1763431839756,-943.95103083,0.000179,2]
[394300220,1763431839833,-734.50233702,0.000179,2]
[394300255,1763431842727,-4776.0835112,0.000178,2]
[394300256,1763431842736,-958.60751482,0.000179,2]
[394300257,1763431842862,-136.65839267,0.000179,2]
[394300272,1763431845939,-98455.95592542,0.000179,2]
[394300280,1763431860993,13558.0,0.00041672,30]
[394300285,1763431930157,600.84,0.00013699,2]
[394300286,1763432272451,2168.11167524,0.00041672,30]
[394300288,1763432289311,340.33987002,0.00041672,120]
[394300289,1763432291705,250.0,0.00041672,120]
[394300290,1763432291785,151.0,0.00041672,120]
[394300291,1763432292367,250.0,0.00041672,120]
[394300292,1763432292462,151.0,0.00041672,120]
[394300293,1763432293012,250.0,0.00041672,120]
[394300294,1763432293078,151.0,0.00041672,120]
[394300295,1763432293637,250.0,0.00041672,120]
[394300296,1763432294232,151.0,0.00041672,120]
[394300297,1763432294875,151.0,0.00041672,120]
[394300298,1763432295050,3844.55793159,0.00041672,30]
[394300299,1763432295495,151.0,0.00041672,120]
[394300300,1763432296120,151.0,0.00041672,120]
[394300301,1763432296754,151.0,0.00041672,120]
[394300302,1763432297586,151.0,0.00041672,120]
[394300303,1763432298082,151.0,0.00041672,120]
[394300304,1763432298864,151.0,0.00041672,120]
[394300305,1763432309678,300899.09702705,0.00041672,30]
[394300306,1763432321231,-156.09084235,0.0001738,7]
[394300307,1763432321260,-1700.0,0.000179,6]
[394300308,1763432331608,430.97,0.00025606,120]
[394300310,1763432345245,153.58863073,0.00041669,120]
[394300311,1763432345385,153.57818303,0.00041669,120]
[394300312,1763432345428,299.64517532,0.00041669,31]
[394300313,1763432347837,343.41854064,0.00041669,120]
[394300315,1763432347940,250.0,0.00041669,120]
[394300316,1763432348549,250.0,0.00041669,120]
[394300317,1763432349184,250.0,0.00041669,120]
[394300318,1763432349836,250.0,0.00041669,120]
[394300319,1763432350479,250.0,0.00041669,120]
[394300320,1763432351126,250.0,0.00041669,120]
[394300321,1763432351582,414.0,0.00041669,120]
[394300322,1763432351613,199.29760319,0.00041669,120]
[394300323,1763432351743,250.0,0.00041669,120]
[394300324,1763432352383,250.0,0.00041669,120]
[394300325,1763432352826,250.0,0.00041669,120]
[394300326,1763432353040,250.0,0.00041669,120]
[394300327,1763432353589,250.0,0.00041669,120]
[394300328,1763432353653,250.0,0.00041669,120]
[394300329,1763432354186,250.0,0.00041669,120]
[394300330,1763432354272,250.0,0.00041669,120]
[394300331,1763432354825,250.0,0.00041669,120]
[394300332,1763432355454,250.0,0.00041669,120]
[394300333,1763432356093,153.40731287,0.00041669,120]
[394300334,1763432356158,250.0,0.00041669,120]
[394300335,1763432356783,250.0,0.00041669,120]
[394300336,1763432357314,500.0,0.00041669,120]
[394300337,1763432357950,500.0,0.00041669,120]
[394300338,1763432358605,500.0,0.00041669,120]
[394300339,1763432359225,500.0,0.00041669,120]
[394300340,1763432359510,250.0,0.00041669,120]
[394300341,1763432360040,500.0,0.00041669,120]
[394300342,1763432360406,250.0,0.00041669,120]
[394300343,1763432360744,500.0,0.00041669,120]
[394300344,1763432360888,250.0,0.00041669,120]
[394300345,1763432361475,500.0,0.00041669,120]
[394300346,1763432361510,250.0,0.00041669,120]
[394300347,1763432362183,250.0,0.00041669,120]
[394300348,1763432362223,500.0,0.00041669,120]
[394300349,1763432362848,250.0,0.00041669,120]
[394300350,1763432362890,500.0,0.00041669,120]
[394300351,1763432363496,500.0,0.00041669,120]
[394300352,1763432363534,250.0,0.00041669,120]
[394300353,1763432364178,250.0,0.00041669,120]
[394300354,1763432364213,500.0,0.00041669,120]
[394300355,1763432364835,500.0,0.00041669,120]
[394300356,1763432364881,250.0,0.00041669,120]
[394300357,1763432365492,500.0,0.00041669,120]
[394300358,1763432365527,250.0,0.00041669,120]
[394300359,1763432366202,250.0,0.00041669,120]
[394300360,1763432366625,500.0,0.00041669,120]
[394300361,1763432367320,500.0,0.00041669,120]
[394300362,1763432367969,500.0,0.00041669,120]
[394300363,1763432368674,500.0,0.00041669,120]
[394300364,1763432369491,500.0,0.00041669,120]
[394300365,1763432369684,250.0,0.00041669,120]
[394300366,1763432369995,500.0,0.00041669,120]
[394300367,1763432370649,500.0,0.00041669,120]
[394300368,1763432370835,250.0,0.00041669,120]
[394300369,1763432371464,250.0,0.00041669,120]
[394300370,1763432372093,250.0,0.00041669,120]
[394300371,1763432372749,250.0,0.00041669,120]
[394300372,1763432373368,250.0,0.00041669,120]
[394300373,1763432374117,250.0,0.00041669,120]
[394300375,1763432465729,414.0,0.00041669,120]
[394300376,1763432466324,414.0,0.00041669,120]
[394300377,1763432471041,151.0,0.00041669,120]
[394300378,1763432471394,474.82217657,0.00041669,30]
[394300379,1763432474155,597.84840506,0.00041669,120]
[394300402,1763432527803,200.0,0.00041669,120]
[394300403,1763432529283,200.0,0.00041669,120]
[394300405,1763432529899,200.0,0.00041669,120]
[394300406,1763432533706,200.0,0.00041669,120]
[394300407,1763432534361,200.0,0.00041669,120]
[394300408,1763432537787,151.0,0.00041669,120]
[394300419,1763432600105,200.0,0.00016956,2]
[394300421,1763432629597,433.62233505,0.00041669,30]
[394300425,1763432727259,153.53458053,0.00041677,120]
[394300427,1763432770992,161.58935737,0.00041677,60]
[394300428,1763432804566,673.97277608,0.0003,120]
[394300431,1763432826550,426.94633095,0.00015,2]
[394300447,1763432861136,167.59659211,0.00041677,120]
[394300450,1763432876941,170.15167999,0.00016956,2]
[394300454,1763432881870,170.21550329,0.00041677,30]
[394300457,1763432888478,2572.68810778,0.0001439,2]
[394300459,1763432891527,1000.0,0.000135,2]
[394300460,1763432891556,305.24481316,0.000125,2]
[394300468,1763432914084,395.02011993,0.00041677,120]
[394300473,1763432941428,152.0,0.00016999,2]
[394300493,1763432990475,250.0,0.00041677,120]
[394300494,1763432994924,250.0,0.00041677,30]
[394300495,1763433001372,300.0,0.00016999,2]
[394300496,1763433001416,1200.0,0.00016999,2]
[394300498,1763433002250,550.0,0.00016999,2]
[394300500,1763433018431,171.86246686,0.000169,2]
[394300521,1763433031723,-250.0,0.00017,2]
[394300522,1763433031733,-137808.82366214,0.00017,2]
[394300523,1763433031748,-261.42206423,0.00017,2]
[394300524,1763433031758,-250.0,0.00017017,2]
[394300525,1763433031767,-150.0,0.00017043,2]
[394300526,1763433031777,-22913.12174822,0.00017043,2]
[394300527,1763433031826,-8745.25825178,0.00017043,2]
[394300528,1763433031837,-430.97,0.00017071,2]
[394300529,1763433031847,-2751.0,0.00017096,2]
[394300530,1763433031857,-17281.26,0.00017153,2]
[394300531,1763433031867,-502.07,0.000172,2]
[394300532,1763433031877,-1000.0,0.00017647,2]
[394300533,1763433031886,-995.372,0.00017647,2]
[394300534,1763433031895,-159.856,0.00017647,2]
[394300535,1763433031904,-400.0,0.000177,6]
[394300536,1763433031914,-5391.46803674,0.000177,2]
[394300537,1763433031923,-2500.0,0.000177,2]
[394300538,1763433031932,-151.0,0.00017717,2]
[394300539,1763433031941,-176.747,0.00017718,2]
[394300540,1763433031950,-1987.568,0.00017718,2]
[394300541,1763433031959,-500.0,0.00017773,2]
[394300542,1763433031969,-502.83354472,0.00017773,2]
[394300543,1763433031979,-281.78743414,0.00017773,2]
[394300544,1763433031989,-500.0,0.00017773,2]
[394300545,1763433032001,-500.85774384,0.00017773,2]
[394300546,1763433032010,-503.17139079,0.00017773,2]
[394300547,1763433032019,-500.0,0.00017773,2]
[394300548,1763433032029,-501.99460035,0.00017773,2]
[394300549,1763433032038,-258.91,0.00017773,2]
[394300551,1763433032047,-151.0,0.00017789,2]
[394300553,1763433032057,-151.0,0.00017789,2]
[394300555,1763433032066,-183.68555989,0.00017789,2]
[394300557,1763433032076,-151.0,0.00017797,2]
[394300559,1763433032085,-500.0,0.00017799,2]
[394300561,1763433032094,-504.72844365,0.00017799,2]
[394300563,1763433032103,-500.0,0.00017799,2]
[394300565,1763433032113,-500.0,0.00017799,2]
[394300567,1763433032123,-500.0,0.00017799,2]
[394300569,1763433032132,-482.74472989,0.00017799,2]
[394300571,1763433032140,-500.0,0.00017799,2]
[394300573,1763433032150,-500.0,0.00017799,2]
[394300575,1763433032158,-500.0,0.00017799,2]
[394300577,1763433032167,-500.0,0.00017799,2]
[394300579,1763433032176,-500.0,0.00017799,2]
[394300581,1763433032185,-500.0,0.00017799,2]
[394300583,1763433032195,-500.0,0.00017799,2]
[394300585,1763433032204,-500.0,0.00017799,2]
[394300588,1763433032213,-500.0,0.00017799,2]
[394300590,1763433032222,-500.0,0.00017799,2]
[394300592,1763433032231,-500.0,0.00017799,2]
[394300594,1763433032240,-289.89120937,0.00017799,2]
[394300596,1763433032254,-152.79595565,0.00017799,2]
[394300598,1763433032263,-624.34923293,0.00017799,2]
[394300600,1763433032271,-72639.75340615,0.000178,2]
[394300623,1763433032575,-924.18930241,0.000178,2]
[394300624,1763433032589,-276256.51064977,0.000178,2]
[394300625,1763433032603,-871.03682505,0.000178,2]
[394300627,1763433037666,-129915.71950478,0.000178,2]
[394300628,1763433037721,-9160.5,0.000178,2]
[394300629,1763433037738,-11448.94053915,0.000178,2]
[394300630,1763433037776,-10678.14737334,0.000178,2]
[394300631,1763433037890,-1246.11490598,0.000178,2]
[394300640,1763433039690,-1709.48644494,0.000178,2]
[394300641,1763433039768,-245149.60104843,0.000178,2]
[394300642,1763433039780,-800.0,0.000178,6]
[394300643,1763433039790,-150.0,0.00017877,2]
[394300644,1763433039800,-150.0,0.00017877,2]
[394300645,1763433039811,-150.0,0.00017877,2]
[394300646,1763433039830,-150.0,0.00017877,2]
[394300647,1763433039844,-150.0,0.00017877,2]
[394300648,1763433039856,-150.0,0.00017877,2]
[394300649,1763433039868,-150.0,0.00017877,2]
[394300650,1763433039880,-150.25498633,0.00017877,2]
[394300651,1763433039892,-150.0,0.00017877,2]
[394300652,1763433039904,-150.0,0.00017877,2]
[394300653,1763433039916,-150.0,0.00017877,2]
[394300654,1763433039928,-150.0,0.00017877,2]
[394300655,1763433039939,-162.76973838,0.00017877,2]
[394300656,1763433039951,-150.0,0.00017877,2]
[394300657,1763433039962,-154.18239145,0.00017877,2]
[394300658,1763433039973,-500.0,0.00017877,2]
[394300659,1763433039988,-502.58209685,0.00017882,2]
[394300660,1763433040000,-19407.3816071,0.00017899,2]
[394300661,1763433040012,-4950.4802253,0.00017899,2]
[394300662,1763433040023,-26952.059936,0.00017899,2]
[394300663,1763433040034,-5296.608801,0.00017899,2]
[394300664,1763433040045,-31095.8731904,0.00017899,2]
[394300665,1763433040057,-150.0,0.00017899,2]
[394300666,1763433040068,-6569.6724868,0.00017899,2]
[394300667,1763433040080,-150.0,0.00017899,2]
[394300668,1763433040091,-500.0,0.00017899,2]
[394300669,1763433040103,-150.0,0.00017899,2]
[394300670,1763433040114,-500.0,0.00017899,2]
[394300671,1763433040126,-15053.1057951,0.00017899,2]
[394300672,1763433040137,-152.76344138,0.00017899,2]
[394300673,1763433040148,-155.17986171,0.00017899,2]
[394300674,1763433040159,-500.0,0.00017899,2]
[394300676,1763433040170,-1077.133564,0.00017899,2]
[394300677,1763433040180,-339.46907598,0.000179,2]
[394300679,1763433040191,-1200.0,0.000179,6]
[394300682,1763433040202,-465.4118,0.000179,2]
[394300684,1763433040213,-194.75,0.00017902,2]
[394300686,1763433040224,-3024.75,0.00017958,2]
[394300688,1763433040234,-506.2849237,0.00017973,2]
[394300690,1763433040247,-500.9697851,0.00017973,2]
[394300692,1763433040258,-500.0,0.00017973,2]
[394300695,1763433040268,-500.0,0.00017973,2]
[394300697,1763433040279,-500.0,0.00017973,2]
[394300698,1763433040289,-500.0,0.00017973,2]
[394300699,1763433040300,-503.55891604,0.00017973,2]
[394300700,1763433040310,-500.0,0.00017973,2]
[394300701,1763433040321,-567.21962,0.00017973,2]
[394300702,1763433040331,-501.44829962,0.00017973,2]
[394300703,1763433040342,-161.68469529,0.00017973,2]
[394300704,1763433040352,-506.14199973,0.00017973,2]
[394300705,1763433040363,-500.0,0.00017973,2]
[394300706,1763433040373,-505.5907601,0.00017973,2]
[394300707,1763433040384,-500.96638163,0.00017973,2]
[394300708,1763433040394,-502.35296359,0.00017973,2]
[394300709,1763433040406,-313.90550161,0.00017973,2]
[394300710,1763433040417,-150.0,0.00017976,2]
[394300711,1763433040428,-150.0,0.00017982,2]
[394300712,1763433040439,-150.0,0.00017987,2]
[394300713,1763433040451,-275.0394179,0.0001799,2]
[394300714,1763433040465,-307.78682563,0.00017999,2]
[394300715,1763433040475,-500.0,0.00017999,2]
[394300716,1763433040487,-245.59058929,0.00017999,2]